Cogmind - Beta 13 @@@ ROGUE MODE // 2024.04.08 @ 15:03:29 Player: Arc Result: Smashed by cave-in Performance ------------- Evolutions (0) 0 Regions Visited (2) 400 Robots Destroyed (37) 185 Value Destroyed (595) 595 Prototype IDs (2) 40 Alien Tech Used (0) 0 Bonus (-78) -78 TOTAL SCORE: 1142 Bonus ------- Follower Combat Kills 39 Friendly Fire -117 Cogmind --------- Core Integrity 0/250 Matter 153/300 Energy 125/125 System Corruption 9% Temperature Cool (0) Movement Treading (240) Ox1 Location -10/Mines Parts ------- > --- POWER (1) -------- Light Ion Engine > --- PROPULSION (2) --- Improved Treads > --- UTILITY (2) ------ Improved Heat Sink Large Storage Unit > --- WEAPON (2) ------- Improved Light Cannon Improved Light Cannon > --- INVENTORY (15) --- Light Treads Improved Treads Improved Treads Utility Shielding Medium Laser Assault Rifle Improved Light Cannon Improved Light Cannon Grenade Launcher Peak State ------------ > --- POWER ------------ Ion Engine > --- PROPULSION ------- Improved Treads Improved Treads > --- UTILITY ---------- Improved Heat Sink Large Storage Unit > --- WEAPON ----------- Improved Light Cannon Improved Light Cannon > --- INVENTORY -------- Light Ion Engine Light Treads Improved Treads Improved Treads Utility Shielding Medium Laser Assault Rifle Light Cannon Light Cannon Improved Light Cannon Improved Light Cannon Grenade Launcher [Rating: 14] Favorites ----------- Power Ion Engine Engine Ion Engine Propulsion Improved Treads Treads Improved Treads Utility Large Storage Unit Device Improved Heat Sink Storage Large Storage Unit Processor Signal Interpreter Protection Utility Shielding Weapon Improved Light Cannon Energy Gun Medium Laser Energy Cannon Beam Cannon Ballistic Gun Assault Rifle Ballistic Cannon Improved Light Cannon Launcher Grenade Launcher Build | -11 -10 -10 ------- Run | Yrd Mat Min Slots Evolved . | . . . Power . | . . . Propulsion . | . . . Utility . | . . . Weapon . | . . . Parts Attached 29 | 5 16 8 Power 4 | 1 1 2 Engine 4 | 1 1 2 Core . | . . . Reactor . | . . . Propulsion 5 | 2 2 1 Treads 5 | 2 2 1 Leg . | . . . Wheel . | . . . Hover . | . . . Flight . | . . . Utility 6 | . 5 1 Device 2 | . 1 1 Storage 2 | . 2 . Processor 1 | . 1 . Hackware . | . . . Protection 1 | . 1 . Artifact . | . . . Weapon 14 | 2 8 4 Energy Gun 3 | 1 2 . Energy Cannon 1 | . . 1 Ballistic Gun 2 | 1 1 . Ballistic Cannon 6 | . 4 2 Launcher 2 | . 1 1 Special Weapon . | . . . Impact Weapon . | . . . Slashing Weapon . | . . . Piercing Weapon . | . . . Special Melee Weapon . | . . . Unidentified Prototypes . | . . . Parts Lost 2 | . . 2 Power 1 | . . 1 Propulsion 1 | . . 1 Utility . | . . . Weapon . | . . . Highest Loss Streak 2 | . . 2 To Critical Strikes . | . . . Average Slot Usage (%) 98 | . 98 99 Engine 13 | . 14 13 Treads 28 | . 28 28 Device 11 | . 10 13 Storage 14 | . 14 14 Protection 1 | . 1 . Energy Gun 5 | . 7 . Energy Cannon 3 | . . 12 Ballistic Gun 5 | . 7 . Ballistic Cannon 12 | . 13 10 Launcher 1 | . . 4 Naked Turns . | . . . Heaviest Build 34 | 7 34 33 Greatest Support 46 | 40 46 46 Greatest Overweight (x) . | . . . Average Overweight (x) . | . . . Largest Inventory Capacity 15 | 5 15 15 Average Capacity 14 | 5 14 15 Most Carried 13 | 4 13 13 Average Carried 8 | 1 7 11 Final Capacity 15 | 5 15 15 Final Carried 13 | 2 13 9 Class Distribution -------------------- 100% | Mutant Dominant Class ---------------- Mutant | -10/Materials Mutant | -10/Mines Resources | -11 -10 -10 ----------- Run | Yrd Mat Min Matter Collected 862 | 261 410 191 Remotely . | . . . Salvage Created 921 | 28 733 160 Parts 64 | 2 48 14 Haulers Intercepted 2 | . 2 . Recyclers Shooed 3 | . 3 . Parts Field Recycled . | . . . Retrieved Matter . | . . . Parts Self-Destructed . | . . . Prevented . | . . . Kills | -11 -10 -10 ------- Run | Yrd Mat Min Combat Hostiles Destroyed 26 | . 15 11 Guns 11 | . 11 . Cannons 8 | . . 8 AOE 7 | . 4 3 Classes Destroyed 11 | 1 8 2 Worker 3 | . 3 . Builder 1 | . 1 . Tunneler 3 | 1 . 2 Hauler 2 | . 2 . Recycler 1 | . 1 . Operator 1 | . 1 . Watcher 3 | . 3 . Swarmer 12 | . 6 6 Grunt 10 | . 9 1 Demolisher 1 | . . 1 Assembled 4 | . . 4 Best Kill Streak 10 | 1 10 5 Combat Bots Only 8 | . 8 4 Max Kills in Single Turn 3 | 1 3 2 Gunslinging . | . . . Exploded 3 | . 3 2 Melee . | . . . Uniques/NPCs Destroyed . | . . . Combat | -11 -10 -10 -------- Run | Yrd Mat Min Hostile Shots Fired 101 | . 52 49 Missed 27 | . 18 9 Damage Taken 1336 | . 394 942 Core 292 | . 124 168 Absorbed by Shields . | . . . Redirected to Shielding 3 | . 3 . Core Remaining (%) 100 | 100 . . Volleys Fired 98 | 4 68 26 Largest 2 | 2 2 2 Hottest 99 | 70 95 99 Shots Fired 192 | 8 132 52 Gun 110 | 8 102 . Cannon 77 | . 28 49 Launcher 5 | . 2 3 Special . | . . . Kinetic 117 | 4 80 33 Thermal 70 | 4 50 16 Explosive 5 | . 2 3 Electromagnetic . | . . . Robot Hit Streak 11 | 1 11 6 Robot Miss Streak 7 | 3 7 6 Penetration Max . | . . . Secondary Targets 1 | . 1 . Max Gunslinging Chain 1 | . 1 . Shots Hit Robots 90 | 3 66 21 Core Hits 62 | 2 41 19 Critical Kills . | . . . Critical Parts Destroyed . | . . . Critical Strikes 6 | 1 5 . Burn 5 | 1 4 . Blast 1 | . 1 . Melee Attacks . | . . . Impact . | . . . Slashing . | . . . Piercing . | . . . Sneak Attacks . | . . . Combat Hostiles . | . . . Follow-up Attacks . | . . . Damage Inflicted 1940 | 53 1176 711 Guns 819 | 53 766 . Cannons 726 | . 202 524 Explosions 387 | . 204 183 Melee . | . . . Ramming 8 | . 4 4 Kinetic 968 | 28 593 347 Thermal 577 | 25 375 177 Explosive 387 | . 204 183 Electromagnetic . | . . . Impact . | . . . Slashing . | . . . Piercing . | . . . Highest Corruption 6 | . 6 6 Average Corruption 5 | . 4 6 Corruption Purged . | . . . Corruption Blocked . | . . . Effects 36 | . 22 14 Message Errors 8 | . 6 2 Matter Fused 10 | . 5 5 Heat Flow Errors 5 | . 5 . Energy Discharges 4 | . 2 2 Data Loss (minor) 4 | . 2 2 Data Loss (major) 1 | . . 1 Misfires 2 | . 1 1 Alerts 1 | . 1 . Weapon Failures 1 | . . 1 Overload Shots . | . . . Overflow Damage 10 | . . 10 Projectiles 9 | . . 9 Explosions 1 | . . 1 Melee . | . . . Knockbacks 3 | . 2 1 Impact . | . . . Kinetic 3 | . 2 1 Secondary . | . . . Self-Inflicted Damage 39 | . 39 . Shots 1 | . 1 . Rammed 2 | . 1 1 Targets Rammed 2 | . 1 1 Kicked . | . . . Crushed . | . . . Highest Temperature 249 | 18 249 180 Average Temperature 60 | 8 57 84 Received Heat Transfer 193 | . 153 40 Siege Activations . | . . . Robots Corrupted . | . . . Combat Hostiles . | . . . Parts Fried . | . . . Impact Corruptions . | . . . Robots Melted . | . . . Combat Hostiles . | . . . Parts Melted 3 | . 2 1 Heat Transferred 1887 | 148 1369 370 Parts Sabotaged . | . . . Parts Stolen . | . . . Parts Stripped . | . . . Power Chain Reactions . | . . . Alert | -11 -10 -10 ------- Run | Yrd Mat Min Peak Influence 279 | 5 279 183 Initial 3 | . 3 . Average 95 | 2 107 73 Maximum Alert Level 1 | . 1 . Low Security (%) 87 | 100 82 100 Level 1 12 | . 17 . Level 2 . | . . . Level 3 . | . . . Level 4 . | . . . Level 5 . | . . . High Security . | . . . Max Security . | . . . Squads Dispatched 3 | . 3 . Investigation 2 | . 2 . Extermination . | . . . Reinforcement 1 | . 1 . Assault . | . . . Garrison . | . . . Intercept . | . . . Searches Triggered . | . . . Construction Impeded . | . . . Haulers Reinforced . | . . . Active Scanning Responses . | . . . Cargo Convoy Interrupts . | . . . Stealth | -11 -10 -10 --------- Run | Yrd Mat Min Distress Signals 2 | . 2 . Communications Jammed . | . . . Distress Signals . | . . . Times Spotted 29 | . 20 9 Peak Tracking Total 7 | . 7 4 Tactical Retreats . | . . . Traps | -11 -10 -10 ------- Run | Yrd Mat Min Traps Triggered 5 | . 5 . Indirectly . | . . . Trap Hack Attempts . | . . . Triggered . | . . . Disarmed . | . . . Reprogrammed . | . . . Reused . | . . . Traps Extracted . | . . . Installed . | . . . Triggered . | . . . Machines | -11 -10 -10 ---------- Run | Yrd Mat Min Machines Disabled . | . . . Max in Single Turn . | . . . Machines Repaired . | . . . Machines Dismantled . | . . . Machines Sabotaged . | . . . Overloaded Fab Kills . | . . . Hacking | -11 -10 -10 --------- Run | Yrd Mat Min Machines Accessed 8 | . 8 . Terminals 7 | . 7 . Fabricators . | . . . Repair Stations . | . . . Recycling Units 1 | . 1 . Scanalyzers . | . . . Garrison Access . | . . . Total Hacks 22 | . 22 . Successful 7 | . 7 . Failed 15 | . 15 . Catastrophic 2 | . 2 . Database Lockouts . | . . . Manual . | . . . Terminals 21 | . 21 . Fabricators . | . . . Repair Stations . | . . . Recycling Units 1 | . 1 . Scanalyzers . | . . . Garrison Access . | . . . Terminal Hacks 6 | . 6 . Robot Analysis 1 | . 1 . Prototype ID Bank 1 | . 1 . Locate Traps 3 | . 3 . Zone Layout 1 | . 1 . Fabricator Hacks . | . . . Repair Station Hacks . | . . . Recycling Unit Hacks 1 | . 1 . Report Inventory 1 | . 1 . Scanalyzer . | . . . Garrison Access Hacks . | . . . Unauthorized Hacks . | . . . Terminals . | . . . Fabricators . | . . . Repair Stations . | . . . Recycling Units . | . . . Scanalyzers . | . . . Garrison Access . | . . . Data Cores Recovered . | . . . Used . | . . . Hacking Detections 6 | . 6 . Full Trace Events 1 | . 1 . Feedback Events . | . . . Feedback Blocked . | . . . Robot Schematics Acquired . | . . . Robots Built . | . . . Authchips . | . . . Time . | . . . Total Robot Build Rating . | . . . Part Schematics Acquired . | . . . Parts Built . | . . . Authchips . | . . . Time . | . . . Total Part Build Rating . | . . . Parts Repaired . | . . . Time . | . . . Parts Recycled . | . . . Recycled Matter . | . . . Retrieved Matter . | . . . Retrieved Components . | . . . Parts Scanalyzed . | . . . Part Schematics Acquired . | . . . Parts Damaged . | . . . Bothacking | -11 -10 -10 ------------ Run | Yrd Mat Min Used RIF Installer . | . . . Robots Hacked . | . . . Non-combat . | . . . Combat . | . . . Robot Hacks Applied . | . . . Relay Couplers Released . | . . . Fabnet Peak Effective % . | . . . Robots Rewired . | . . . Allies Hacked . | . . . Hacks Repelled . | . . . Allies | -11 -10 -10 -------- Run | Yrd Mat Min Total Allies 3 | . . 3 Largest Group 3 | . . 3 Highest-Rated Group 40 | . . 40 Highest-Rated Ally 16 | . . 16 Total Orders . | . . . Ally Attacks 4 | . . 4 Total Damage 47 | . . 47 Kills 1 | . . 1 Allies Corrupted . | . . . Allies Melted . | . . . Intel | -11 -10 -10 ------- Run | Yrd Mat Min Robot Analysis Total 1 | . 1 . Derelict Logs Recovered 2 | . . 2 Drone Launches . | . . . Drone Recoveries . | . . . Exploration | -11 -10 -10 ------------- Run | Yrd Mat Min Turns Passed 2197 | 69 1601 527 Spaces Moved 1152 | 36 844 272 Core 10 | 10 . . Treads 1142 | 26 844 272 Legs . | . . . Wheels . | . . . Hover . | . . . Flight . | . . . Fastest Speed 50 | 50 160 160 Average Speed 159 | 129 160 160 Slowest Speed 160 | 160 160 160 Overloaded Moves . | . . . Propulsion Burnouts . | . . . Robots Hopped . | . . . Cave-ins Triggered 1 | . . 1 Exploration Rate (%) 55 | 4 99 62 Regions Visited 2 Branch Regions 1 Pre-discovered Areas 1 | . . 1 Known Exits Taken 1 | . 1 . Unknown Exits Taken 1 | 1 . . Scrap Searched 2 | . . 2 Spaces Dug . | . . . Terrain Destroyed 40 | . 17 23 Melee . | . . . Projectile 7 | . 1 6 AOE 33 | . 16 17 Terrain Rammed . | . . . Walls Destroyed . | . . . Machines Disabled . | . . . Actions | -11 -10 -10 --------- Run | Yrd Mat Min Total 1324 | 51 964 309 Wait . | . . . Move 1150 | 35 843 272 Hop . | . . . Pick Up 30 | 7 23 . Fast Attach . | . . . Attach 11 | 5 5 1 Detach 3 | . 3 . Swap 18 | . 11 7 Drop 12 | . 10 2 Fire 98 | 4 68 26 Melee . | . . . Ram . | . . . Kick . | . . . Crush 2 | . 1 1 Escape Stasis . | . . . Rewire . | . . . Trap . | . . . Miscellaneous . | . . . Route ------- -11/Scrapyard -10/Materials (discovered 6 exits: [*Mat x3] / *Min x2 / [*Sub]) -10/Mines (discovered 1 exit: [*Mat]) History --------- Turn | Location | Event 46 | -11/Scrapyard | Discovered new exit (range 16) 70 | -11/Scrapyard | Entered Materials 114 | -10/Materials | Discovered new exit (range 17) 300 | -10/Materials | Build established: Mutant 609 | -10/Materials | Discovered new exit (range 9) 703 | -10/Materials | Destroyed 8 combat bots 785 | -10/Materials | Discovered new exit (range 5) 913 | -10/Materials | Discovered new exit (range 16) 1052 | -10/Materials | Discovered new exit (range 16) 1496 | -10/Materials | Discovered new exit (range 15) 1669 | -10/Materials | Identified exit to Mines 1671 | -10/Materials | Entered Mines 1676 | -10/Mines | Core integrity fell below 50% 1722 | -10/Mines | Learned location of 1 exit from Materials 1856 | -10/Mines | Assembled infested the area 1861 | -10/Mines | Assisted by a Guerilla fighting off Assembled 1937 | -10/Mines | Discovered new exit (range 15) 2067 | -10/Mines | Assisted by bots powering up and referring to "LRC-V3" 2091 | -10/Mines | Learned location of Storage (-8) 2169 | -10/Mines | Core integrity fell below 20% 2183 | -10/Mines | Lost 3 allies 2199 | -10/Mines | Crushed by falling debris 2199 | -10/Mines | Smashed by cave-in Last Messages --------------- Acquired derelict log, extracted data. World map updated: -8/Storage. System corrupted: Matter fused (-9). Trooper 1b destroyed. [Achievement: Backstab] Mercenary 1a destroyed. The unstable cave ceiling collapses. System corrupted: Component data lost. The unstable cave ceiling collapses. Ion Engine destroyed. The unstable cave ceiling collapses. T-07 Excavator destroyed. Shock Absorption System melted. D-53 Grenadier destroyed. The unstable cave ceiling collapses. Dropped Beam Cannon. The unstable cave ceiling collapses. Crushed by falling debris. Imp. Treads destroyed. System corrupted by crushing effect (+3). Map ----- +----------------------------------------------------+ | ?????????# #???????????????## #???? | | ?????????# #????????????#### #???? | | ?????????# #??????####### ##??? | | ?????????# ##?????# ! ##?? | | ?????????# #?????# #### ### | | ?????????## #?????# #??## ## | | ??????????# #?????# #???### | | ??????????# ####### ####??### | | ??????????# # ##???## ## | | ??????????####### # #????###### | | ???????????????## ?????????# | | ???????????????# ##????????# | | ???????????????## # # ????????## | | ?????####??????# %# #???????## " | | ????## ##??????# = #???????# " | | ????# #??????# [ #???????# " | | ???## #??????# #% ####?????# | | ???# ######## #####?## | | ??# ##?## | | ??# #### # #??### | | ??#######?# #????? | | ??????????# ## ##????? | | ???????#### #### ##?????? | | ???????# ] #??# ##??????? | | ???????# !%= ##???###???????? | | ??###### # @# # ##?????????###### | | ??# ## #??????????# | | ??# #[ ####??????????# #### | | ??# = ###?????????????# #??? | | ??# = ## ##???????????????# #??? | | ??# %* "#######????????????????# #??? | | ??# **|= #????????????????##### #??? | | ??## ### #????????????##### #??? | | ???####?#=#???????###?## ##??? | | ????????#=#??????## ## ###???? | | ????????# #??????# ##?????? | | ????????#!#?????## ##??????? | | ????????# #???### """ ##??????? | | ????????# ##### """ ##?????? | | ????????# """ #?????? | | ????????# #### #?????? | | ????????# ##### ## #?????? | | ????????# #???## ## #????? | | ????????##### #????# ##### #???? | | ????????????# #?#### ##????# #??? | | ??########### ### ###?????? #??? | | ??# ## ## #???????? ##??? | | ??# ## ## < ##???????? #???? | | ??# ## #?????????# #???? | | ??? """" ##### #??????????###???? | +----------------------------------------------------+ Best States ------------- Heat Dissipation 39 Energy Generation 10 Energy Capacity 250 Matter Stores 300 Matter Capacity 300 Sight Range 16 Terrain Scan Density 10 Utility Shielding 33 Evasion (%) 50 Recoil Reduction 2 Item Schematics ----------------- None Robot Schematics ------------------ None Fabricated ------------ Nothing Alien Tech Used ----------------- None Achievements -------------- Backstab Challenges ------------ None Game ------ Seed AblativeMassRigger Manual? 0 Play Time 00:25:37 Cumulative 6.9 hours Start 2024.04.08 @ 14:38:09 End 2024.04.08 @ 15:03:29 Sessions 1 Manual Loads 0 Difficulty Rogue Special Mode None Game No. 9 Rogue 9 Adventurer 0 Explorer 0 Win Type - Total 0 Types 0/0/0/0/0/0/0/0/0 Lore% 9 Gallery% 8 Achievement% 12 Wizard Run 0 Options --------- Layout 1 ASCII 0 Keyboard 0 Movement Mouse Keybinds 0 Fullscreen 1 Font 16/SmallcapsGlow Map View 55x38 Zoom Use 0% Tactical HUD 0 Map Filters NONE Filters NONE Steam 1 RUN: 5dd9fcc6-2b20-4ac4-96f8-9519c7a707ee